[Event "28th Hit Open-A 2024"]
[Site "Nova Gorica"]
[Date "2024.01.30"]
[Round "6.37"]
[White "Petrosino, Germano"]
[Black "Mihelj, Edvard"]
[Result "1-0"]
[ECO "C01"]
[WhiteElo "1715"]
[BlackElo "1618"]
[Annotator "NA RC"]
[PlyCount "54"]
[EventDate "2024.01.22"]
[EventType "swiss"]
[EventCountry "SLO"]
[SourceTitle "playchess.com"]
[Source "ChessBase"]
[SourceQuality "1"]
[TimeControl "5400+30"]

1. d4 {[%emt 0:00:02]} d6 {[%emt 0:00:27]} 2. e4 {[%emt 0:00:11]} e6 {[%emt 0:00:56]} 3. c4 {[%emt 0:00:42]} c6 {[%emt 0:00:18]} 4. Nc3 {[%emt 0:00:18]} g6 {[%emt 0:00:43]} 5. f4 {[%emt 0:04:55]} Bg7 {[%emt 0:00:15]} 6. Nf3 {[%emt 0:00:07]} Ne7 {[%emt 0:01:32]} 7. Be2 {[%emt 0:00:34]} b6 {[%emt 0:00:35]} 8. O-O {[%emt 0:00:38]} Bb7 {[%emt 0:00:15]} 9. Be3 {[%emt 0:01:01]} a6 {[%emt 0:00:46]} 10. Qd2 {[%emt 0:01:37]} Nd7 {[%emt 0:00:22]} 11. Rad1 {[%emt 0:00:27]} Qc7 {[%emt 0:00:44]} 12. d5 {[%emt 0:02:15]} exd5 {[%emt 0:02:53]} 13. cxd5 {[%emt 0:01:21]} c5 {[%emt 0:00:57]} 14. e5 {[%emt 0:00:46]} O-O {[%emt 0:03:01]} 15. e6 {[%emt 0:05:25]} Bxc3 {[%emt 0:05:05]} 16. Qxc3 {[%emt 0:02:30]} Nxd5 {[%emt 0:00:29]} 17. Rxd5 {[%emt 0:00:24]} Bxd5 {[%emt 0:01:59]} 18. exd7 {[%emt 0:00:10]} Qxd7 {[%emt 0:01:17]} 19. f5 {[%emt 0:05:58]} f6 {[%emt 0:04:48]} 20. fxg6 {[%emt 0:00:47]} hxg6 {[%emt 0:01:58]} 21. Nh4 {[%emt 0:05:53]} Qg7 {[%emt 0:06:10]} 22. Qd2 {[%emt 0:01:17]} Qf7 {[%emt 0:02:41]} 23. Nxg6 {[%emt 0:06:40]} Qxg6 {[%emt 0:02:41]} 24. Qxd5+ {[%emt 0:02:35]} Qf7 {[%emt 0:00:47]} 25. Qxd6 {[%emt 0:02:20]} Rfe8 {[%emt 0:04:30]} 26. Rxf6 {[%emt 0:01:41]} Rad8 {[%emt 0:01:12]} 27. Qg3+ {[%emt 0:00:25]} Kf8 {[%emt 0:00:56]} 1-0

[Event "28th Hit Open-A 2024"]
[Site "Nova Gorica"]
[Date "2024.01.30"]
[Round "6.38"]
[White "Ivsek, Cveto"]
[Black "Cokan, Mirko"]
[Result "1-0"]
[ECO "A46"]
[WhiteElo "1711"]
[BlackElo "1614"]
[Annotator "NA RC"]
[PlyCount "113"]
[EventDate "2024.01.22"]
[EventType "swiss"]
[EventCountry "SLO"]
[SourceTitle "playchess.com"]
[Source "ChessBase"]
[SourceQuality "1"]
[TimeControl "5400+30"]

1. d4 {[%emt 0:00:30]} Nf6 {[%emt 0:04:06]} 2. Bf4 {[%emt 0:00:00]} d6 {[%emt 0:02:44]} 3. e3 {[%emt 0:00:40]} Nbd7 {[%emt 0:00:59]} 4. Nf3 {[%emt 0:01:51]} c6 {[%emt 0:01:40]} 5. c3 {[%emt 0:00:37]} Qc7 {[%emt 0:00:29]} 6. h3 {[%emt 0:05:29]} e5 {[%emt 0:02:33]} 7. Bh2 {[%emt 0:02:21]} Be7 {[%emt 0:03:37]} 8. Bc4 {[%emt 0:00:34]} O-O {[%emt 0:01:10]} 9. O-O {[%emt 0:00:09]} e4 {[%emt 0:00:26]} 10. Nfd2 {[%emt 0:00:49]} Qb6 {[%emt 0:01:09]} 11. Qb3 {[%emt 0:00:28]} d5 {[%emt 0:00:40]} 12. Be2 {[%emt 0:00:40]} Qd8 {[%emt 0:04:46]} 13. c4 {[%emt 0:01:17]} a5 {[%emt 0:00:48]} 14. Nc3 {[%emt 0:02:50]} dxc4 {[%emt 0:01:31]} 15. Bxc4 {[%emt 0:05:11]} b5 {[%emt 0:04:14]} 16. Be2 {[%emt 0:00:12]} a4 {[%emt 0:01:55]} 17. Qc2 {[%emt 0:00:47]} Bb7 {[%emt 0:01:42]} 18. Ncxe4 {[%emt 0:01:46]} Ne8 {[%emt 0:05:50]} 19. Nc5 {[%emt 0:03:14]} Nxc5 {[%emt 0:03:07]} 20. dxc5 {[%emt 0:01:40]} Bf6 {[%emt 0:01:53]} 21. Ne4 {[%emt 0:01:41]} Qa5 {[%emt 0:06:48]} 22. Rad1 {[%emt 0:06:18]} Bc8 {[%emt 0:02:50]} 23. Bf3 {[%emt 0:04:18]} Be7 {[%emt 0:06:13]} 24. Nd6 {[%emt 0:01:37]} Qa6 {[%emt 0:02:58]} 25. Qe4 {[%emt 0:06:32]} Bxd6 {[%emt 0:03:52]} 26. Bxd6 {[%emt 0:02:58]} Nxd6 {[%emt 0:01:10]} 27. Rxd6 {[%emt 0:01:20]} Bb7 {[%emt 0:02:52]} 28. Rfd1 {[%emt 0:01:21]} g6 {[%emt 0:03:29]} 29. h4 {[%emt 0:00:51]} Rae8 {[%emt 0:00:39]} 30. Qf4 {[%emt 0:03:06]} Qa7 {[%emt 0:01:48]} 31. Rd7 {[%emt 0:01:25]} Qb8 {[%emt 0:00:52]} 32. Qc7 {[%emt 0:07:03]} Ba8 {[%emt 0:03:54]} 33. h5 {[%emt 0:03:27]} Qxc7 {[%emt 0:01:11]} 34. Rxc7 {[%emt 0:00:08]} Re6 {[%emt 0:00:08]} 35. hxg6 {[%emt 0:01:09]} Rxg6 {[%emt 0:01:06]} 36. b4 {[%emt 0:01:26]} Kg7 {[%emt 0:02:06]} 37. Rdd7 {[%emt 0:01:33]} Rf6 {[%emt 0:02:11]} 38. Ra7 {[%emt 0:01:48]} Re6 {[%emt 0:01:55]} 39. Bh5 {[%emt 0:02:09]} Rf6 {[%emt 0:00:58]} 40. Ra6 {[%emt 0:01:46]} Rf5 {[%emt 0:00:41]} 41. Bf3 {[%emt 0:00:25]} Rf6 {[%emt 0:00:28]} 42. Rda7 {[%emt 0:00:12]} Rd8 {[%emt 0:02:23]} 43. Rxa8 {[%emt 0:01:02]} Rd2 {[%emt 0:00:26]} 44. Rxc6 {[%emt 0:03:58]} Rxa2 {[%emt 0:01:34]} 45. Rxf6 Kxf6 {[%emt 0:00:02]} 46. c6 {[%emt 0:02:09]} Rc2 {[%emt 0:00:04]} 47. Bd5 {[%emt 0:01:23]} Ke7 {[%emt 0:03:23]} 48. e4 {[%emt 0:00:40]} f6 {[%emt 0:00:29]} 49. Ra5 {[%emt 0:00:25]} Rc1+ {[%emt 0:00:38]} 50. Kh2 {[%emt 0:00:08]} Ra1 {[%emt 0:00:30]} 51. Rxb5 {[%emt 0:00:13]} Rb1 {[%emt 0:00:43]} 52. c7 {[%emt 0:00:17]} Rc1 {[%emt 0:00:55]} 53. Rb7 {[%emt 0:00:48]} Kd6 {[%emt 0:00:45]} 54. b5 {[%emt 0:00:52]} f5 {[%emt 0:00:15]} 55. f3 {[%emt 0:00:30]} h5 {[%emt 0:00:21]} 56. b6 {[%emt 0:00:17]} fxe4 {[%emt 0:02:04]} 57. fxe4 {[%emt 0:00:43]} 1-0

[Event "28th Hit Open-A 2024"]
[Site "Nova Gorica"]
[Date "2024.01.30"]
[Round "6.39"]
[White "Cortese, Lina"]
[Black "Guid, Taja"]
[Result "0-1"]
[ECO "A25"]
[WhiteElo "1582"]
[BlackElo "1698"]
[Annotator "NA RC"]
[PlyCount "96"]
[EventDate "2024.01.22"]
[EventType "swiss"]
[EventCountry "SLO"]
[SourceTitle "playchess.com"]
[Source "ChessBase"]
[SourceQuality "1"]
[TimeControl "5400+30"]

1. c4 {[%emt 0:00:39]} e5 {[%emt 0:00:05]} 2. Nc3 {[%emt 0:00:05]} Nc6 {[%emt 0:00:03]} 3. g3 {[%emt 0:00:09]} f5 {[%emt 0:00:06]} 4. d3 {[%emt 0:00:17]} Nf6 {[%emt 0:00:12]} 5. Bg2 {[%emt 0:00:18]} Bb4 {[%emt 0:00:37]} 6. Bd2 {[%emt 0:02:39]} Bxc3 {[%emt 0:02:23]} 7. bxc3 {[%emt 0:00:45]} d6 {[%emt 0:00:52]} 8. Nf3 {[%emt 0:00:17]} O-O {[%emt 0:00:42]} 9. O-O {[%emt 0:01:33]} Qe8 {[%emt 0:01:11]} 10. e3 {[%emt 0:01:13]} e4 {[%emt 0:15:55]} 11. Ne1 {[%emt 0:01:07]} Ne5 {[%emt 0:02:23]} 12. Bc1 {[%emt 0:05:00]} exd3 {[%emt 0:14:31]} 13. Nxd3 {[%emt 0:00:53]} Nxc4 {[%emt 0:09:43]} 14. Qb3 {[%emt 0:00:20]} Qf7 {[%emt 0:00:06]} 15. Rb1 {[%emt 0:01:54]} c6 {[%emt 0:04:50]} 16. Rd1 {[%emt 0:03:58]} d5 {[%emt 0:05:05]} 17. Nb2 {[%emt 0:04:23]} Nxb2 {[%emt 0:02:26]} 18. Rxb2 {[%emt 0:00:33]} Ne4 {[%emt 0:01:22]} 19. Rd4 {[%emt 0:00:34]} b5 {[%emt 0:03:54]} 20. a4 {[%emt 0:01:01]} Nc5 {[%emt 0:01:17]} 21. Qa3 {[%emt 0:00:52]} Nxa4 {[%emt 0:02:21]} 22. Rxa4 {[%emt 0:01:48]} bxa4 {[%emt 0:00:00]} 23. Qxa4 {[%emt 0:00:10]} Qc7 {[%emt 0:02:58]} 24. c4 {[%emt 0:01:39]} Be6 {[%emt 0:00:51]} 25. Rc2 {[%emt 0:02:56]} dxc4 {[%emt 0:01:37]} 26. Bxc6 {[%emt 0:01:16]} Rac8 {[%emt 0:03:32]} 27. Bf3 {[%emt 0:01:00]} Rfd8 {[%emt 0:01:50]} 28. Bb2 {[%emt 0:00:53]} Bd5 {[%emt 0:03:48]} 29. Be2 {[%emt 0:01:47]} h6 {[%emt 0:03:38]} 30. Bd4 {[%emt 0:00:37]} a5 {[%emt 0:01:57]} 31. Rc1 {[%emt 0:07:14]} Kh7 {[%emt 0:02:14]} 32. Bc3 {[%emt 0:00:56]} Ra8 {[%emt 0:00:28]} 33. Bd4 {[%emt 0:02:06]} Rdc8 {[%emt 0:00:53]} 34. Rc3 {[%emt 0:03:41]} Qc6 {[%emt 0:00:48]} 35. Qc2 {[%emt 0:00:46]} Qe6 {[%emt 0:00:44]} 36. f3 {[%emt 0:00:43]} g6 {[%emt 0:02:06]} 37. Kf2 {[%emt 0:00:39]} Qc6 {[%emt 0:02:48]} 38. Ra3 {[%emt 0:02:17]} Rcb8 {[%emt 0:01:05]} 39. Qd2 {[%emt 0:05:03]} a4 {[%emt 0:01:14]} 40. Be5 {[%emt 0:03:13]} Rb3 {[%emt 0:00:41]} 41. Ra2 {[%emt 0:02:15]} a3 {[%emt 0:01:05]} 42. Bc3 {[%emt 0:01:16]} Qc5 {[%emt 0:02:08]} 43. Bd1 {[%emt 0:01:17]} Rb7 {[%emt 0:01:09]} 44. Ba1 {[%emt 0:02:37]} c3 {[%emt 0:00:38]} 45. Rc2 {[%emt 0:00:55]} cxd2 {[%emt 0:01:26]} 46. Rxc5 {[%emt 0:00:13]} Rb1 {[%emt 0:01:48]} 47. Rxd5 {[%emt 0:07:21]} Rxd1 {[%emt 0:00:16]} 48. Bc3 {[%emt 0:01:21]} a2 {[%emt 0:00:20]} 0-1

[Event "28th Hit Open-A 2024"]
[Site "Nova Gorica"]
[Date "2024.01.30"]
[Round "6.40"]
[White "Bajec, Borut"]
[Black "Gratton, Damjan"]
[Result "1/2-1/2"]
[ECO "E61"]
[WhiteElo "1703"]
[BlackElo "1691"]
[Annotator "NA RC"]
[PlyCount "114"]
[EventDate "2024.01.22"]
[EventType "swiss"]
[EventCountry "SLO"]
[SourceTitle "playchess.com"]
[Source "ChessBase"]
[SourceQuality "1"]
[TimeControl "5400+30"]

1. d4 {[%emt 0:05:46]} d6 {[%emt 0:00:21]} 2. Nf3 {[%emt 0:01:07]} Nf6 {[%emt 0:00:28]} 3. c4 {[%emt 0:00:25]} g6 {[%emt 0:01:03]} 4. e3 {[%emt 0:00:37]} Bg7 {[%emt 0:00:39]} 5. Bd3 {[%emt 0:00:44]} O-O {[%emt 0:00:31]} 6. O-O {[%emt 0:00:13]} Nbd7 {[%emt 0:00:49]} 7. Nc3 {[%emt 0:01:44]} c6 {[%emt 0:00:46]} 8. b3 {[%emt 0:01:43]} Qa5 {[%emt 0:01:49]} 9. Bd2 {[%emt 0:02:26]} Qc7 {[%emt 0:00:56]} 10. Rc1 {[%emt 0:04:34]} e5 {[%emt 0:01:50]} 11. e4 {[%emt 0:04:09]} exd4 {[%emt 0:03:21]} 12. Nxd4 {[%emt 0:00:15]} Nc5 {[%emt 0:00:31]} 13. Bb1 {[%emt 0:00:22]} Ncxe4 {[%emt 0:01:10]} 14. Bf4 {[%emt 0:03:16]} Nxc3 {[%emt 0:02:32]} 15. Rxc3 {[%emt 0:00:06]} Nh5 {[%emt 0:01:26]} 16. Be3 {[%emt 0:01:01]} a6 {[%emt 0:07:20]} 17. Rd3 {[%emt 0:02:27]} c5 {[%emt 0:02:56]} 18. Nf3 {[%emt 0:02:18]} Rd8 {[%emt 0:01:10]} 19. Ng5 {[%emt 0:02:58]} Bf5 {[%emt 0:03:09]} 20. Rd2 {[%emt 0:01:16]} Bxb1 {[%emt 0:02:22]} 21. Qxb1 {[%emt 0:00:02]} Rd7 {[%emt 0:02:50]} 22. Rfd1 {[%emt 0:01:32]} Rad8 {[%emt 0:01:05]} 23. Ne4 {[%emt 0:00:45]} f5 {[%emt 0:07:15]} 24. Ng5 {[%emt 0:00:59]} Re8 {[%emt 0:00:53]} 25. Qd3 {[%emt 0:07:28]} Qc6 {[%emt 0:03:13]} 26. Re2 {[%emt 0:05:46]} h6 {[%emt 0:03:45]} 27. Nf3 {[%emt 0:01:37]} Kf7 {[%emt 0:04:46]} 28. Nh4 {[%emt 0:09:52]} Qe4 {[%emt 0:05:39]} 29. Qxe4 {[%emt 0:04:34]} Rxe4 {[%emt 0:00:53]} 30. g3 {[%emt 0:00:12]} Nf6 {[%emt 0:03:19]} 31. Kf1 {[%emt 0:00:48]} Bf8 {[%emt 0:03:13]} 32. Red2 {[%emt 0:01:00]} Re8 {[%emt 0:02:12]} 33. Rd3 {[%emt 0:02:05]} Red8 {[%emt 0:01:16]} 34. h3 {[%emt 0:01:24]} d5 {[%emt 0:03:32]} 35. Nf3 {[%emt 0:00:17]} Ke6 {[%emt 0:02:04]} 36. Re1 {[%emt 0:04:26]} Ne4 {[%emt 0:00:34]} 37. cxd5+ {[%emt 0:01:04]} Rxd5 {[%emt 0:00:26]} 38. Rxd5 {[%emt 0:00:23]} Rxd5 {[%emt 0:00:02]} 39. Nh4 {[%emt 0:00:12]} Kf6 {[%emt 0:01:41]} 40. Kg2 {[%emt 0:01:56]} b5 {[%emt 0:02:29]} 41. Rc1 {[%emt 0:00:42]} g5 {[%emt 0:03:34]} 42. Nf3 {[%emt 0:00:25]} Rd8 {[%emt 0:00:27]} 43. Ng1 {[%emt 0:01:05]} Rd5 {[%emt 0:01:58]} 44. f3 {[%emt 0:00:39]} Rd3 {[%emt 0:05:14]} 45. fxe4 {[%emt 0:01:19]} Rxe3 {[%emt 0:00:33]} 46. exf5 {[%emt 0:00:11]} h5 {[%emt 0:01:44]} 47. g4 {[%emt 0:01:36]} hxg4 {[%emt 0:00:06]} 48. hxg4 {[%emt 0:00:08]} Bd6 {[%emt 0:01:36]} 49. Rd1 {[%emt 0:01:01]} Be5 {[%emt 0:01:04]} 50. Nf3 {[%emt 0:00:34]} Re2+ {[%emt 0:02:11]} 51. Kf1 {[%emt 0:00:09]} Rxa2 {[%emt 0:01:37]} 52. Re1 {[%emt 0:00:35]} Ra1 {[%emt 0:01:17]} 53. Nxe5 {[%emt 0:01:09]} Rxe1+ {[%emt 0:00:14]} 54. Kxe1 {[%emt 0:00:07]} Kxe5 {[%emt 0:00:05]} 55. Kd2 {[%emt 0:00:12]} a5 {[%emt 0:03:06]} 56. Kc2 {[%emt 0:01:38]} Kd5 {[%emt 0:00:31]} 57. Kb2 {[%emt 0:01:02]} Ke5 {[%emt 0:00:50]} 1/2-1/2

[Event "28th Hit Open-A 2024"]
[Site "Nova Gorica"]
[Date "2024.01.30"]
[Round "6.41"]
[White "Mulec, Dejan"]
[Black "Vodnik, Val"]
[Result "0-1"]
[ECO "D00"]
[WhiteElo "1577"]
[BlackElo "1661"]
[Annotator "NA RC"]
[PlyCount "60"]
[EventDate "2024.01.22"]
[EventType "swiss"]
[EventCountry "SLO"]
[SourceTitle "playchess.com"]
[Source "ChessBase"]
[SourceQuality "1"]
[TimeControl "5400+30"]

1. d4 {[%emt 0:00:05]} Nf6 {[%emt 0:00:10]} 2. Nc3 {[%emt 0:00:08]} e6 {[%emt 0:00:07]} 3. Bf4 {[%emt 0:00:23]} d5 {[%emt 0:01:49]} 4. e3 {[%emt 0:00:39]} Bb4 {[%emt 0:00:42]} 5. Bd3 {[%emt 0:01:27]} c5 {[%emt 0:00:26]} 6. Nf3 {[%emt 0:03:06]} c4 {[%emt 0:02:50]} 7. Be2 {[%emt 0:00:07]} Ne4 {[%emt 0:00:06]} 8. O-O {[%emt 0:00:09]} Nxc3 {[%emt 0:00:14]} 9. bxc3 {[%emt 0:00:08]} Bxc3 {[%emt 0:00:03]} 10. Rb1 {[%emt 0:00:10]} Nc6 {[%emt 0:00:18]} 11. Ne5 {[%emt 0:01:03]} Nxe5 {[%emt 0:03:52]} 12. Bxe5 {[%emt 0:00:11]} O-O {[%emt 0:00:09]} 13. f3 {[%emt 0:02:13]} a6 {[%emt 0:06:28]} 14. Qc1 {[%emt 0:02:56]} f6 {[%emt 0:01:51]} 15. Qa3 {[%emt 0:02:09]} Qa5 {[%emt 0:10:56]} 16. Bd6 {[%emt 0:07:59]} Qxa3 {[%emt 0:00:47]} 17. Bxa3 {[%emt 0:03:45]} Re8 {[%emt 0:00:03]} 18. Bc5 {[%emt 0:02:20]} b5 {[%emt 0:00:29]} 19. a4 {[%emt 0:00:35]} Bd7 {[%emt 0:00:11]} 20. e4 {[%emt 0:01:23]} Bc6 {[%emt 0:00:16]} 21. exd5 {[%emt 0:01:50]} exd5 {[%emt 0:00:05]} 22. Kf2 {[%emt 0:00:56]} Reb8 {[%emt 0:00:51]} 23. axb5 {[%emt 0:01:26]} axb5 {[%emt 0:01:18]} 24. f4 {[%emt 0:00:32]} Ra2 {[%emt 0:00:45]} 25. Bd1 {[%emt 0:00:28]} b4 {[%emt 0:00:48]} 26. Kg3 {[%emt 0:00:49]} Ba4 {[%emt 0:00:47]} 27. Rf3 {[%emt 0:02:12]} Bxc2 {[%emt 0:02:49]} 28. Bxc2 {[%emt 0:01:20]} Rxc2 {[%emt 0:00:27]} 29. Re3 {[%emt 0:00:48]} b3 {[%emt 0:01:03]} 30. Kg4 {[%emt 0:02:05]} b2 {[%emt 0:01:35]} 0-1

[Event "28th Hit Open-A 2024"]
[Site "Nova Gorica"]
[Date "2024.01.31"]
[Round "7.1"]
[White "Berkes, Ferenc"]
[Black "Ceres, Dragos"]
[Result "1/2-1/2"]
[ECO "D30"]
[WhiteElo "2613"]
[BlackElo "2438"]
[Annotator "RC"]
[PlyCount "45"]
[EventDate "2024.01.22"]
[EventType "swiss"]
[EventCountry "SLO"]
[SourceTitle "playchess.com"]
[Source "ChessBase"]
[SourceQuality "1"]
[TimeControl "5400+30"]

1. d4 {[%emt 0:00:06]} d5 {[%emt 0:00:49]} 2. c4 {[%emt 0:00:11]} e6 {[%emt 0:00:05]} 3. Nf3 {[%emt 0:00:19]} c5 {[%emt 0:00:06]} 4. cxd5 {[%emt 0:00:16]} exd5 {[%emt 0:04:35]} 5. e3 {[%emt 0:02:30]} Nf6 {[%emt 0:00:28]} 6. Bb5+ {[%emt 0:00:44]} Nbd7 {[%emt 0:02:45]} 7. dxc5 {[%emt 0:02:07]} Bxc5 {[%emt 0:00:30]} 8. O-O {[%emt 0:00:11]} O-O {[%emt 0:00:52]} 9. Nc3 {[%emt 0:03:40]} Nb6 {[%emt 0:04:04]} 10. b3 {[%emt 0:01:43]} Ne4 {[%emt 0:02:56]} 11. Bb2 {[%emt 0:00:28]} Bg4 {[%emt 0:03:21]} 12. Nxe4 {[%emt 0:25:07]} dxe4 {[%emt 0:00:10]} 13. Qxd8 {[%emt 0:00:05]} Rfxd8 {[%emt 0:00:23]} 14. Ne5 {[%emt 0:00:09]} a6 {[%emt 0:06:03]} 15. Bc6 {[%emt 0:05:58]} bxc6 {[%emt 0:00:40]} 16. Nxg4 {[%emt 0:00:12]} f6 {[%emt 0:00:15]} 17. Rfc1 {[%emt 0:02:39]} Rd5 {[%emt 0:00:47]} 18. h3 {[%emt 0:02:40]} a5 {[%emt 0:02:03]} 19. Nh2 {[%emt 0:11:22]} a4 {[%emt 0:00:55]} 20. Nf1 {[%emt 0:00:06]} Nd7 {[%emt 0:05:38]} 21. Ng3 {[%emt 0:01:55]} f5 {[%emt 0:00:42]} 22. Kf1 {[%emt 0:07:41]} Rb8 {[%emt 0:02:46]} 23. Ne2 {[%emt 0:06:53]} 1/2-1/2

[Event "28th Hit Open-A 2024"]
[Site "Nova Gorica"]
[Date "2024.01.31"]
[Round "7.2"]
[White "Basso, Pier Luigi"]
[Black "Karacsonyi, Gellert"]
[Result "1-0"]
[ECO "D37"]
[WhiteElo "2482"]
[BlackElo "2398"]
[Annotator "RC"]
[PlyCount "119"]
[EventDate "2024.01.22"]
[EventType "swiss"]
[EventCountry "SLO"]
[SourceTitle "playchess.com"]
[Source "ChessBase"]
[SourceQuality "1"]
[TimeControl "5400+30"]

1. d4 {[%emt 0:01:05]} d5 {[%emt 0:00:08]} 2. c4 {[%emt 0:00:06]} e6 {[%emt 0:00:06]} 3. Nf3 {[%emt 0:00:11]} Nf6 {[%emt 0:00:08]} 4. Nc3 {[%emt 0:00:05]} a6 {[%emt 0:00:14]} 5. cxd5 {[%emt 0:00:17]} exd5 {[%emt 0:00:15]} 6. Bg5 {[%emt 0:00:13]} Be6 {[%emt 0:00:27]} 7. e3 {[%emt 0:00:17]} Nbd7 {[%emt 0:01:06]} 8. Bd3 {[%emt 0:00:07]} c6 {[%emt 0:00:11]} 9. Qb3 {[%emt 0:02:26]} Qc8 {[%emt 0:13:16]} 10. O-O {[%emt 0:01:02]} Bd6 {[%emt 0:09:42]} 11. Bf4 {[%emt 0:00:19]} Bxf4 {[%emt 0:18:27]} 12. exf4 {[%emt 0:00:06]} Ne4 {[%emt 0:00:07]} 13. Qc2 {[%emt 0:04:14]} f5 {[%emt 0:03:07]} 14. Ng5 {[%emt 0:07:54]} Nxg5 {[%emt 0:04:48]} 15. fxg5 {[%emt 0:00:06]} O-O {[%emt 0:00:06]} 16. Rfe1 {[%emt 0:00:27]} Nb6 {[%emt 0:02:00]} 17. Ne2 {[%emt 0:02:31]} Bd7 {[%emt 0:02:48]} 18. Nf4 {[%emt 0:02:42]} Qc7 {[%emt 0:01:12]} 19. Re5 {[%emt 0:02:19]} Rae8 {[%emt 0:08:15]} 20. Nxd5 {[%emt 0:11:50]} Nxd5 {[%emt 0:00:12]} 21. Rxd5 {[%emt 0:00:04]} g6 {[%emt 0:12:41]} 22. Qc3 {[%emt 0:02:27]} Be6 {[%emt 0:02:54]} 23. Re5 {[%emt 0:00:19]} Bf7 {[%emt 0:00:07]} 24. Rae1 {[%emt 0:01:41]} Qd7 {[%emt 0:01:20]} 25. Bc4 {[%emt 0:03:29]} Rxe5 {[%emt 0:04:01]} 26. dxe5 {[%emt 0:00:20]} Bxc4 {[%emt 0:01:12]} 27. Qxc4+ {[%emt 0:00:06]} Qd5 {[%emt 0:00:12]} 28. Qxd5+ {[%emt 0:01:07]} cxd5 {[%emt 0:00:02]} 29. e6 {[%emt 0:09:12]} Re8 {[%emt 0:09:14]} 30. f4 {[%emt 0:00:33]} Re7 {[%emt 0:01:05]} 31. Kf2 {[%emt 0:00:11]} Kf8 {[%emt 0:00:06]} 32. Re5 {[%emt 0:00:49]} Rc7 {[%emt 0:01:01]} 33. Rxd5 {[%emt 0:01:16]} Rc2+ {[%emt 0:00:06]} 34. Kf3 {[%emt 0:00:33]} Rxb2 {[%emt 0:00:02]} 35. Rd7 {[%emt 0:02:36]} Rxa2 {[%emt 0:00:09]} 36. Rxb7 {[%emt 0:00:43]} Ra3+ {[%emt 0:00:02]} 37. Kf2 {[%emt 0:00:06]} Ra2+ {[%emt 0:00:38]} 38. Ke3 {[%emt 0:01:21]} Ra4 {[%emt 0:04:34]} 39. Rxh7 {[%emt 0:00:06]} Re4+ {[%emt 0:00:02]} 40. Kf3 {[%emt 0:00:06]} Rxe6 {[%emt 0:00:04]} 41. Ra7 {[%emt 0:00:06]} Rb6 {[%emt 0:00:23]} 42. h3 {[%emt 0:04:17]} Rb3+ {[%emt 0:00:28]} 43. Kf2 {[%emt 0:00:05]} Rb2+ {[%emt 0:01:01]} 44. Kg3 {[%emt 0:00:09]} Rb3+ {[%emt 0:00:21]} 45. Kh4 {[%emt 0:00:11]} Ra3 {[%emt 0:00:26]} 46. g4 {[%emt 0:01:15]} Ra4 {[%emt 0:01:35]} 47. Kg3 {[%emt 0:00:10]} Ra3+ {[%emt 0:00:05]} 48. Kf2 {[%emt 0:00:13]} fxg4 {[%emt 0:03:25]} 49. hxg4 {[%emt 0:00:02]} Kg8 {[%emt 0:00:06]} 50. Rc7 {[%emt 0:00:06]} Kf8 {[%emt 0:00:40]} 51. Rd7 {[%emt 0:00:47]} Kg8 {[%emt 0:00:48]} 52. Re7 {[%emt 0:00:05]} Kf8 {[%emt 0:00:05]} 53. Re3 {[%emt 0:00:20]} Ra5 {[%emt 0:00:44]} 54. Kf3 {[%emt 0:00:06]} Kf7 {[%emt 0:00:03]} 55. Rc3 {[%emt 0:00:08]} Ra1 {[%emt 0:01:00]} 56. Rc7+ {[%emt 0:00:13]} Kf8 {[%emt 0:00:21]} 57. f5 {[%emt 0:01:23]} Rf1+ {[%emt 0:00:40]} 58. Ke4 {[%emt 0:00:08]} Re1+ {[%emt 0:00:26]} 59. Kf4 {[%emt 0:00:05]} a5 {[%emt 0:00:14]} 60. Ra7 {[%emt 0:00:04]} 1-0

[Event "28th Hit Open-A 2024"]
[Site "Nova Gorica"]
[Date "2024.01.31"]
[Round "7.3"]
[White "Kulkarni Bhakti"]
[Black "Csonka, Balazs"]
[Result "1/2-1/2"]
[ECO "A14"]
[WhiteElo "2364"]
[BlackElo "2479"]
[Annotator "RC"]
[PlyCount "40"]
[EventDate "2024.01.22"]
[EventType "swiss"]
[EventCountry "SLO"]
[SourceTitle "playchess.com"]
[Source "ChessBase"]
[SourceQuality "1"]
[TimeControl "5400+30"]

1. Nf3 {[%emt 0:03:05]} d5 {[%emt 0:00:17]} 2. g3 {[%emt 0:00:30]} Nf6 {[%emt 0:00:10]} 3. Bg2 {[%emt 0:00:25]} e6 {[%emt 0:00:08]} 4. O-O {[%emt 0:00:47]} Be7 {[%emt 0:00:06]} 5. c4 {[%emt 0:07:48]} O-O {[%emt 0:00:14]} 6. b3 {[%emt 0:00:12]} d4 {[%emt 0:00:32]} 7. e3 {[%emt 0:06:04]} c5 {[%emt 0:00:09]} 8. exd4 {[%emt 0:01:53]} cxd4 {[%emt 0:00:09]} 9. Ne5 {[%emt 0:00:24]} Qc7 {[%emt 0:03:39]} 10. Re1 {[%emt 0:03:22]} Nc6 {[%emt 0:09:15]} 11. Nxc6 {[%emt 0:07:03]} bxc6 {[%emt 0:00:41]} 12. Ba3 {[%emt 0:00:54]} Re8 {[%emt 0:14:35]} 13. Bxe7 {[%emt 0:03:10]} Rxe7 {[%emt 0:00:02]} 14. d3 {[%emt 0:02:04]} Rb8 {[%emt 0:11:50]} 15. Nd2 {[%emt 0:00:54]} c5 {[%emt 0:00:44]} 16. f4 {[%emt 0:09:55]} e5 {[%emt 0:21:31]} 17. fxe5 {[%emt 0:04:49]} Rxe5 {[%emt 0:00:03]} 18. Rxe5 {[%emt 0:01:51]} Qxe5 {[%emt 0:00:03]} 19. Qe1 {[%emt 0:00:20]} Qc7 {[%emt 0:06:05]} 20. Ne4 {[%emt 0:05:56]} Nxe4 {[%emt 0:07:18]} 1/2-1/2